[Event "2026 European Womens Championship"]
[Site "Batumi, GE"]
[Date "2026.06.01"]
[Round "7"]
[White "Arabidze, Meri"]
[Black "Hnatyshyn, Anastasiia"]
[Result "1-0"]
[Board "49"]
[TimeControl "5400+30"]
[WhiteFideId "13604040"]
[BlackFideId "14198339"]
[WhiteElo "2409"]
[BlackElo "2207"]
[WhiteTitle "IM"]
[BlackTitle "WFM"]
[WhiteClock "0:01:48"]
[BlackClock "0:03:15"]
[Variant "Standard"]

1. d4 {[%clk 1:30:51]}  d5 {[%clk 1:30:55]} 2. c4 {[%clk 1:31:16]}  e6 {[%clk 1:31:21]} 3. Nc3 {[%clk 1:31:41]}  Nf6 {[%clk 1:31:46]}
4. cxd5 {[%clk 1:32:00]}  exd5 {[%clk 1:32:12]} 5. Bg5 {[%clk 1:32:19]}  c6 {[%clk 1:32:35]} 6. Qc2 {[%clk 1:32:40]}  h6 {[%clk 1:32:49]}
7. Bh4 {[%clk 1:33:03]}  Be7 {[%clk 1:33:05]} 8. e3 {[%clk 1:33:20]}  O-O {[%clk 1:33:20]} 9. Bd3 {[%clk 1:33:39]}  Ne8 {[%clk 1:33:23]}
10. Bg3 {[%clk 1:33:42]}  Nd6 {[%clk 1:33:37]} 11. Nge2 {[%clk 1:33:31]}  a5 {[%clk 1:30:49]} 12. O-O {[%clk 1:33:18]}  Na6 {[%clk 1:30:54]}
13. a3 {[%clk 1:33:19]}  Nc7 {[%clk 1:30:38]} 14. Rac1 {[%clk 1:29:22]}  Ne6 {[%clk 1:27:20]} 15. h3 {[%clk 1:28:06]}  Re8 {[%clk 1:25:23]}
16. Rfd1 {[%clk 1:18:39]}  Bf8 {[%clk 1:09:53]} 17. Be5 {[%clk 1:12:21]}  Ng5 {[%clk 1:05:10]} 18. Ng3 {[%clk 1:05:26]}  Nc4 {[%clk 0:55:07]}
19. Bxc4 {[%clk 0:50:39]}  dxc4 {[%clk 0:55:16]} 20. f4 {[%clk 0:44:23]}  Nh7 {[%clk 0:48:12]} 21. f5 {[%clk 0:40:50]}  b5 {[%clk 0:41:38]}
22. Bf4 {[%clk 0:35:31]}  Qh4 {[%clk 0:34:14]} 23. Qf2 {[%clk 0:32:56]}  Nf6 {[%clk 0:28:21]} 24. Qf3 {[%clk 0:30:33]}  b4 {[%clk 0:19:23]}
25. Na4 {[%clk 0:25:24]}  Nd5 {[%clk 0:16:12]} 26. Rxc4 {[%clk 0:25:25]}  Ba6 {[%clk 0:14:07]} 27. Rc2 {[%clk 0:21:58]}  bxa3 {[%clk 0:11:27]}
28. bxa3 {[%clk 0:22:08]}  Bxa3 {[%clk 0:11:17]} 29. Nc5 {[%clk 0:15:08]}  Bb5 {[%clk 0:10:54]} 30. Be5 {[%clk 0:10:53]}  Qg5 {[%clk 0:01:55]}
31. Bf4 {[%clk 0:05:09]}  Qh4 {[%clk 0:01:30]} 32. Be5 {[%clk 0:05:31]}  Qg5 {[%clk 0:01:55]} 33. Re1 {[%clk 0:03:35]}  Bb4 {[%clk 0:02:03]}
34. Nge4 {[%clk 0:03:36]}  Qd8 {[%clk 0:01:33]} 35. Ra1 {[%clk 0:00:44]}  f6 {[%clk 0:01:30]} 36. Bg3 {[%clk 0:00:33]}  Bxc5 {[%clk 0:00:55]}
37. Rxc5 {[%clk 0:01:02]}  Bd3 {[%clk 0:00:45]} 38. Nd6 {[%clk 0:01:08]}  Rxe3 {[%clk 0:01:10]} 39. Qg4 {[%clk 0:01:25]}  Qd7 {[%clk 0:00:35]}
40. Rcxa5 {[%clk 0:01:07]}  Rxa5 {[%clk 0:00:36]} 41. Rxa5 {[%clk 0:01:31]}  Qd8 {[%clk 0:25:40]} 42. Ra7 {[%clk 0:20:56]}  Re7 {[%clk 0:24:06]}
43. Ra3 {[%clk 0:20:44]}  Be2 {[%clk 0:19:02]} 44. Qg6 {[%clk 0:20:52]}  Nb6 {[%clk 0:15:21]} 45. Rb3 {[%clk 0:12:27]}  Nd7 {[%clk 0:13:04]}
46. Bf4 {[%clk 0:12:31]}  Nf8 {[%clk 0:09:45]} 47. Qg3 {[%clk 0:12:55]}  Kh7 {[%clk 0:09:18]} 48. Kh2 {[%clk 0:13:02]}  Bh5 {[%clk 0:06:32]}
49. Qc3 {[%clk 0:10:12]}  Bf7 {[%clk 0:03:59]} 50. Nxf7 {[%clk 0:07:46]}  Rxf7 {[%clk 0:04:27]} 51. Qc5 {[%clk 0:07:44]}  Qd5 {[%clk 0:00:35]}
52. Qxd5 {[%clk 0:07:35]}  cxd5 {[%clk 0:01:03]} 53. Rb8 {[%clk 0:07:55]}  g5 {[%clk 0:00:35]} 54. Bd6 {[%clk 0:07:11]}  Kg7 {[%clk 0:00:32]}
55. g4 {[%clk 0:06:24]}  Nh7 {[%clk 0:00:45]} 56. Rb5 {[%clk 0:01:56]}  h5 {[%clk 0:00:40]} 57. Rxd5 {[%clk 0:01:58]}  Rb7 {[%clk 0:01:01]}
58. Rc5 {[%clk 0:00:53]}  Rb2+ {[%clk 0:01:04]} 59. Kg3 {[%clk 0:00:41]}  Rb3+ {[%clk 0:01:21]} 60. Kg2 {[%clk 0:01:03]}  Rd3 {[%clk 0:00:48]}
61. Rc7+ {[%clk 0:01:00]}  Kg8 {[%clk 0:01:01]} 62. Rc8+ {[%clk 0:00:56]}  Kg7 {[%clk 0:01:20]} 63. Rc7+ {[%clk 0:01:23]}  Kg8 {[%clk 0:01:47]}
64. Bc5 {[%clk 0:01:08]}  h4 {[%clk 0:02:07]} 65. Rc8+ {[%clk 0:00:46]}  Kg7 {[%clk 0:02:32]} 66. Rd8 {[%clk 0:00:48]}  Rg3+ {[%clk 0:02:49]}
67. Kh2 {[%clk 0:01:14]}  Rc3 {[%clk 0:03:00]} 68. Rd7+ {[%clk 0:01:28]}  Kg8 {[%clk 0:03:25]} 69. Rd8+ {[%clk 0:01:07]}  Kg7 {[%clk 0:03:50]}
70. Rc8 {[%clk 0:00:50]}  Rc2+ {[%clk 0:03:40]} 71. Kg1 {[%clk 0:01:16]}  Rd2 {[%clk 0:04:06]} 72. Rc7+ {[%clk 0:01:20]}  Kg8 {[%clk 0:04:31]}
73. Kf1 {[%clk 0:01:04]}  Rd3 {[%clk 0:02:39]} 74. Kg2 {[%clk 0:01:07]}  Rg3+ {[%clk 0:02:59]} 75. Kh2 {[%clk 0:01:35]}  Rd3 {[%clk 0:03:24]}
76. Ra7 {[%clk 0:01:44]}  Rd2+ {[%clk 0:02:55]} 77. Kg1 {[%clk 0:02:11]}  Rc2 {[%clk 0:02:28]} 78. Kf1 {[%clk 0:02:21]}  Rh2 {[%clk 0:02:19]}
79. Ra3 {[%clk 0:02:18]}  Kf7 {[%clk 0:02:16]} 80. Ke1 {[%clk 0:00:45]}  Rh1+ {[%clk 0:02:34]} 81. Ke2 {[%clk 0:00:46]}  Rh2+ {[%clk 0:03:01]}
82. Kf1 {[%clk 0:01:12]}  Rh1+ {[%clk 0:03:20]} 83. Kg2 {[%clk 0:01:35]}  Rd1 {[%clk 0:03:45]} 84. Kf3 {[%clk 0:01:44]}  Re1 {[%clk 0:03:30]}
85. Re3 {[%clk 0:00:56]}  Rg1 {[%clk 0:03:00]} 86. Ke4 {[%clk 0:01:10]}  Nf8 {[%clk 0:03:05]} 87. Kd5 {[%clk 0:01:32]}  Nh7 {[%clk 0:03:15]}
88. Kc6 {[%clk 0:01:48]} 1-0

[Event "2026 European Womens Championship"]
[Site "Batumi, GE"]
[Date "2026.06.01"]
[Round "7"]
[White "Vega Gutierrez, Sabrina"]
[Black "Fataliyeva, Ulviyya"]
[Result "1-0"]
[Board "50"]
[TimeControl "5400+30"]
[WhiteFideId "2219026"]
[BlackFideId "13403052"]
[WhiteElo "2375"]
[BlackElo "2450"]
[WhiteTitle "IM"]
[BlackTitle "IM"]
[WhiteClock "0:17:38"]
[BlackClock "0:12:33"]
[Variant "Standard"]

1. e4 {[%clk 1:30:56]}  c5 {[%clk 1:20:31]} 2. Nf3 {[%clk 1:31:17]}  e6 {[%clk 1:20:57]} 3. d4 {[%clk 1:31:41]}  cxd4 {[%clk 1:21:24]}
4. Nxd4 {[%clk 1:32:03]}  Nc6 {[%clk 1:21:51]} 5. Nc3 {[%clk 1:30:37]}  Nf6 {[%clk 1:21:55]} 6. Qd3 {[%clk 1:30:56]}  d5 {[%clk 1:22:18]}
7. exd5 {[%clk 1:31:10]}  Nb4 {[%clk 1:22:44]} 8. Qg3 {[%clk 1:31:26]}  Bc5 {[%clk 1:23:03]} 9. a3 {[%clk 1:31:49]}  Nbxd5 {[%clk 1:23:23]}
10. Nxd5 {[%clk 1:32:08]}  Qxd5 {[%clk 1:23:50]} 11. Nb5 {[%clk 1:32:18]}  O-O {[%clk 1:24:01]} 12. Nc3 {[%clk 1:32:35]}  Qd6 {[%clk 1:24:26]}
13. Bd3 {[%clk 1:32:53]}  h6 {[%clk 1:24:08]} 14. Bf4 {[%clk 1:33:11]}  Qb6 {[%clk 1:24:22]} 15. Na4 {[%clk 1:33:00]}  Qa5+ {[%clk 1:24:08]}
16. b4 {[%clk 1:33:19]}  Qxa4 {[%clk 1:24:15]} 17. Bxh6 {[%clk 1:33:30]}  Nh5 {[%clk 1:23:37]} 18. Qe5 {[%clk 1:33:48]}  Qc6 {[%clk 1:04:36]}
19. bxc5 {[%clk 1:12:50]}  gxh6 {[%clk 1:00:28]} 20. Qxh5 {[%clk 1:12:48]}  Kg7 {[%clk 0:59:23]} 21. Qe5+ {[%clk 1:10:43]}  f6 {[%clk 0:57:45]}
22. Qg3+ {[%clk 1:11:01]}  Kf7 {[%clk 0:57:28]} 23. Qg6+ {[%clk 1:06:18]}  Ke7 {[%clk 0:57:53]} 24. Rb1 {[%clk 1:05:02]}  Qxc5 {[%clk 0:50:02]}
25. O-O {[%clk 1:04:11]}  Qg5 {[%clk 0:45:38]} 26. Qe4 {[%clk 1:04:11]}  f5 {[%clk 0:45:43]} 27. Qe5 {[%clk 0:58:08]}  Rg8 {[%clk 0:42:49]}
28. g3 {[%clk 0:58:20]}  Qg7 {[%clk 0:42:13]} 29. Qc5+ {[%clk 0:56:56]}  Kf6 {[%clk 0:32:58]} 30. Rfe1 {[%clk 0:57:17]}  b6 {[%clk 0:28:54]}
31. Qd6 {[%clk 0:54:59]}  Qd7 {[%clk 0:21:55]} 32. Qe5+ {[%clk 0:52:44]}  Kf7 {[%clk 0:20:20]} 33. Bc4 {[%clk 0:37:43]}  Rg6 {[%clk 0:18:04]}
34. Rbd1 {[%clk 0:32:37]}  Qc6 {[%clk 0:15:14]} 35. Qxf5+ {[%clk 0:32:19]}  Kg7 {[%clk 0:15:36]} 36. Qe5+ {[%clk 0:30:30]}  Rf6 {[%clk 0:15:44]}
37. Re4 {[%clk 0:18:49]}  Bb7 {[%clk 0:14:20]} 38. Rg4+ {[%clk 0:18:50]}  Kf7 {[%clk 0:14:33]} 39. Bxe6+ {[%clk 0:18:41]}  Qxe6 {[%clk 0:13:18]}
40. Qc7+ {[%clk 0:18:53]}  Kf8 {[%clk 0:11:53]} 41. Qg7+ {[%clk 0:18:08]}  Ke8 {[%clk 0:12:21]} 42. Qxb7 {[%clk 0:18:19]}  Qxg4 {[%clk 0:12:38]}
43. Re1+ {[%clk 0:18:17]}  Re6 {[%clk 0:11:51]} 44. Qxa8+ {[%clk 0:18:30]}  Ke7 {[%clk 0:12:15]} 45. Qxa7+ {[%clk 0:17:39]}  Kf6 {[%clk 0:12:31]}
46. Rxe6+ {[%clk 0:17:35]}  Qxe6 {[%clk 0:12:56]} 47. Qh7 {[%clk 0:15:14]}  Qe1+ {[%clk 0:12:07]} 48. Kg2 {[%clk 0:17:28]}  Qd2 {[%clk 0:12:33]}
49. Qd3 {[%clk 0:17:38]} 1-0

[Event "2026 European Womens Championship"]
[Site "Batumi, GE"]
[Date "2026.06.01"]
[Round "7"]
[White "Bivol, Alina"]
[Black "Ushenina, Anna"]
[Result "0-1"]
[Board "51"]
[TimeControl "5400+30"]
[WhiteFideId "4100123"]
[BlackFideId "14110911"]
[WhiteElo "2361"]
[BlackElo "2420"]
[WhiteTitle "IM"]
[BlackTitle "GM"]
[WhiteClock "0:01:24"]
[BlackClock "0:05:19"]
[Variant "Standard"]

1. e4 {[%clk 1:30:55]}  c5 {[%clk 1:30:44]} 2. Nf3 {[%clk 1:31:06]}  d6 {[%clk 1:30:33]} 3. d4 {[%clk 1:31:15]}  cxd4 {[%clk 1:30:58]}
4. Nxd4 {[%clk 1:31:31]}  Nf6 {[%clk 1:31:06]} 5. Bd3 {[%clk 1:31:54]}  Nc6 {[%clk 1:30:54]} 6. Be3 {[%clk 1:32:12]}  g6 {[%clk 1:29:29]}
7. h3 {[%clk 1:29:37]}  Bg7 {[%clk 1:29:33]} 8. c4 {[%clk 1:29:58]}  Ng4 {[%clk 1:27:49]} 9. hxg4 {[%clk 1:29:53]}  Bxd4 {[%clk 1:28:15]}
10. Bxd4 {[%clk 1:29:55]}  Nxd4 {[%clk 1:28:44]} 11. Nc3 {[%clk 1:29:34]}  e5 {[%clk 1:28:36]} 12. Qd2 {[%clk 1:28:47]}  Bxg4 {[%clk 1:19:45]}
13. f4 {[%clk 1:27:55]}  h5 {[%clk 1:11:43]} 14. Nd5 {[%clk 1:20:24]}  Rc8 {[%clk 0:57:20]} 15. Qf2 {[%clk 1:06:21]}  Be6 {[%clk 0:53:21]}
16. Kf1 {[%clk 0:53:03]}  Kf8 {[%clk 0:40:33]} 17. Kg1 {[%clk 0:47:35]}  Kg7 {[%clk 0:38:39]} 18. Rf1 {[%clk 0:43:43]}  Bxd5 {[%clk 0:34:14]}
19. exd5 {[%clk 0:36:43]}  f5 {[%clk 0:34:21]} 20. Rh4 {[%clk 0:29:17]}  Qf6 {[%clk 0:32:48]} 21. fxe5 {[%clk 0:27:14]}  dxe5 {[%clk 0:33:06]}
22. b3 {[%clk 0:17:19]}  b6 {[%clk 0:32:51]} 23. Qg3 {[%clk 0:17:12]}  Rce8 {[%clk 0:27:12]} 24. Kh2 {[%clk 0:05:39]}  f4 {[%clk 0:25:13]}
25. Rhxf4 {[%clk 0:02:47]}  exf4 {[%clk 0:25:13]} 26. Rxf4 {[%clk 0:02:47]}  h4 {[%clk 0:22:36]} 27. Qg4 {[%clk 0:00:41]}  Nf5 {[%clk 0:20:00]}
28. Rxf5 {[%clk 0:01:28]}  Qd6+ {[%clk 0:19:59]} 29. Qf4 {[%clk 0:01:28]}  Qxf4+ {[%clk 0:19:14]} 30. Rxf4 {[%clk 0:02:00]}  Re3 {[%clk 0:18:20]}
31. Rd4 {[%clk 0:01:37]}  Kf6 {[%clk 0:09:39]} 32. d6 {[%clk 0:01:51]}  Rd8 {[%clk 0:09:47]} 33. b4 {[%clk 0:01:32]}  Ke5 {[%clk 0:05:33]}
34. Rd5+ {[%clk 0:01:57]}  Ke6 {[%clk 0:05:58]} 35. Bxg6 {[%clk 0:01:46]}  Rxd6 {[%clk 0:06:06]} 36. Rh5 {[%clk 0:01:40]}  Kf6 {[%clk 0:05:08]}
37. Bh7 {[%clk 0:01:37]}  Rd4 {[%clk 0:05:20]} 38. Bg8 {[%clk 0:01:23]}  Re8 {[%clk 0:01:23]} 39. Bd5 {[%clk 0:01:00]}  Kg6 {[%clk 0:02:44]}
40. Bf3 {[%clk 0:01:13]}  Rxc4 {[%clk 0:03:07]} 41. Rd5 {[%clk 0:01:05]}  Kf6 {[%clk 0:01:12]} 42. Rd6+ {[%clk 0:00:49]}  Re6 {[%clk 0:24:20]}
43. Rd7 {[%clk 0:31:06]}  Re7 {[%clk 0:24:44]} 44. Rd6+ {[%clk 0:31:20]}  Kf5 {[%clk 0:24:01]} 45. b5 {[%clk 0:30:41]}  Ra4 {[%clk 0:23:28]}
46. Rh6 {[%clk 0:25:10]}  Re1 {[%clk 0:19:36]} 47. Rh8 {[%clk 0:23:43]}  Re5 {[%clk 0:16:24]} 48. Bd1 {[%clk 0:22:44]}  Rb4 {[%clk 0:11:56]}
49. Bc2+ {[%clk 0:21:55]}  Kg5 {[%clk 0:12:00]} 50. Rg8+ {[%clk 0:20:26]}  Kf6 {[%clk 0:09:17]} 51. Rf8+ {[%clk 0:17:19]}  Kg7 {[%clk 0:07:17]}
52. Ra8 {[%clk 0:15:05]}  Re7 {[%clk 0:07:40]} 53. Kh3 {[%clk 0:14:42]}  Re3+ {[%clk 0:07:38]} 54. Kh2 {[%clk 0:15:06]}  Ra3 {[%clk 0:07:41]}
55. Bb3 {[%clk 0:15:31]}  Rxb5 {[%clk 0:07:19]} 56. Rg8+ {[%clk 0:14:19]}  Kf6 {[%clk 0:06:02]} 57. Rg4 {[%clk 0:12:31]}  Rh5 {[%clk 0:06:14]}
58. Kh3 {[%clk 0:12:41]}  a5 {[%clk 0:03:06]} 59. Rf4+ {[%clk 0:12:59]}  Kg5 {[%clk 0:03:03]} 60. Rd4 {[%clk 0:11:26]}  b5 {[%clk 0:01:56]}
61. Rd5+ {[%clk 0:11:50]}  Kh6 {[%clk 0:02:18]} 62. Rd6+ {[%clk 0:12:14]}  Kg7 {[%clk 0:02:32]} 63. Kg4 {[%clk 0:12:17]}  Re5 {[%clk 0:01:38]}
64. Kxh4 {[%clk 0:11:03]}  a4 {[%clk 0:02:03]} 65. Rd7+ {[%clk 0:10:29]}  Kf6 {[%clk 0:02:11]} 66. Rf7+ {[%clk 0:08:45]}  Kg6 {[%clk 0:02:35]}
67. Ra7 {[%clk 0:09:12]}  Re3 {[%clk 0:00:53]} 68. Bd5 {[%clk 0:06:20]}  Re5 {[%clk 0:01:00]} 69. Ra6+ {[%clk 0:05:00]}  Kg7 {[%clk 0:01:22]}
70. Bb3 {[%clk 0:05:14]}  Re3 {[%clk 0:00:52]} 71. Bd5 {[%clk 0:05:25]}  Red3 {[%clk 0:00:58]} 72. Be6 {[%clk 0:05:32]}  Rd2 {[%clk 0:00:40]}
73. g4 {[%clk 0:05:51]}  Re3 {[%clk 0:00:50]} 74. Kg5 {[%clk 0:05:44]}  b4 {[%clk 0:01:06]} 75. Ra7+ {[%clk 0:04:59]}  Kf8 {[%clk 0:01:32]}
76. Bf5 {[%clk 0:04:08]}  b3 {[%clk 0:01:42]} 77. axb3 {[%clk 0:03:56]}  axb3 {[%clk 0:02:11]} 78. Rb7 {[%clk 0:04:08]}  b2 {[%clk 0:01:08]}
79. Kf6 {[%clk 0:03:24]}  Rd6+ {[%clk 0:01:28]} 80. Kg5 {[%clk 0:03:52]}  Re2 {[%clk 0:01:41]} 81. Bg6 {[%clk 0:02:45]}  Ree6 {[%clk 0:01:42]}
82. Rb8+ {[%clk 0:02:07]}  Ke7 {[%clk 0:02:08]} 83. Rb7+ {[%clk 0:02:07]}  Kd8 {[%clk 0:02:18]} 84. Bb1 {[%clk 0:02:22]}  Rb6 {[%clk 0:02:36]}
85. Rh7 {[%clk 0:01:54]}  Re1 {[%clk 0:02:56]} 86. Bc2 {[%clk 0:01:13]}  b1=Q {[%clk 0:03:08]} 87. Bxb1 {[%clk 0:01:41]}  Rexb1 {[%clk 0:03:25]}
88. Ra7 {[%clk 0:01:30]}  Ke8 {[%clk 0:03:22]} 89. Ra8+ {[%clk 0:01:41]}  Kf7 {[%clk 0:03:47]} 90. Ra7+ {[%clk 0:01:42]}  Rb7 {[%clk 0:04:10]}
91. Ra4 {[%clk 0:02:00]}  R7b5+ {[%clk 0:04:22]} 92. Kh4 {[%clk 0:02:22]}  Kg6 {[%clk 0:04:22]} 93. Ra6+ {[%clk 0:02:04]}  Rb6 {[%clk 0:04:48]}
94. Ra3 {[%clk 0:02:09]}  Rh1+ {[%clk 0:05:07]} 95. Kg3 {[%clk 0:02:38]}  Rb5 {[%clk 0:05:06]} 96. Kg2 {[%clk 0:01:24]}  Rhb1 {[%clk 0:05:19]} 0-1

[Event "2026 European Womens Championship"]
[Site "Batumi, GE"]
[Date "2026.06.01"]
[Round "7"]
[White "Rakhmangulova, Anastasiya"]
[Black "Salimova, Nurgyul"]
[Result "1/2-1/2"]
[Board "52"]
[TimeControl "5400+30"]
[WhiteFideId "14117479"]
[BlackFideId "2915138"]
[WhiteElo "2328"]
[BlackElo "2404"]
[WhiteTitle "WGM"]
[BlackTitle "IM"]
[WhiteClock "0:20:43"]
[BlackClock "0:13:50"]
[Variant "Standard"]

1. e4 {[%clk 1:30:58]}  e5 {[%clk 1:30:40]} 2. Nf3 {[%clk 1:31:18]}  Nf6 {[%clk 1:31:00]} 3. Nc3 {[%clk 1:30:21]}  Nc6 {[%clk 1:31:06]}
4. d4 {[%clk 1:30:41]}  exd4 {[%clk 1:31:13]} 5. Nd5 {[%clk 1:30:21]}  Nb4 {[%clk 1:30:42]} 6. Nxf6+ {[%clk 1:29:55]}  Qxf6 {[%clk 1:31:06]}
7. a3 {[%clk 1:30:19]}  Nc6 {[%clk 1:30:54]} 8. Bd3 {[%clk 1:30:31]}  d6 {[%clk 1:30:58]} 9. Bb5 {[%clk 1:30:33]}  a6 {[%clk 1:27:51]}
10. Bxc6+ {[%clk 1:29:26]}  bxc6 {[%clk 1:28:12]} 11. Qxd4 {[%clk 1:27:24]}  Qxd4 {[%clk 1:27:12]} 12. Nxd4 {[%clk 1:27:48]}  c5 {[%clk 1:26:24]}
13. Ne2 {[%clk 1:27:45]}  f5 {[%clk 1:17:35]} 14. Nc3 {[%clk 1:24:31]}  fxe4 {[%clk 1:15:55]} 15. O-O {[%clk 1:16:59]}  Bb7 {[%clk 1:07:09]}
16. Nxe4 {[%clk 1:13:14]}  Kd7 {[%clk 1:06:43]} 17. f3 {[%clk 1:00:54]}  Re8 {[%clk 0:56:44]} 18. Bd2 {[%clk 0:57:47]}  d5 {[%clk 0:52:42]}
19. Ng3 {[%clk 0:58:06]}  g6 {[%clk 0:47:41]} 20. b4 {[%clk 0:47:50]}  cxb4 {[%clk 0:31:40]} 21. axb4 {[%clk 0:47:53]}  Bd6 {[%clk 0:31:31]}
22. Rfe1 {[%clk 0:40:25]}  Rxe1+ {[%clk 0:30:40]} 23. Rxe1 {[%clk 0:40:34]}  c5 {[%clk 0:27:37]} 24. c3 {[%clk 0:35:56]}  cxb4 {[%clk 0:24:55]}
25. cxb4 {[%clk 0:36:21]}  Rc8 {[%clk 0:25:03]} 26. Rb1 {[%clk 0:29:47]}  Rc2 {[%clk 0:23:35]} 27. Be3 {[%clk 0:29:33]}  Bc6 {[%clk 0:22:00]}
28. Nf1 {[%clk 0:26:19]}  Bb5 {[%clk 0:17:35]} 29. Nd2 {[%clk 0:17:14]}  Bd3 {[%clk 0:16:23]} 30. Rb3 {[%clk 0:17:17]}  Bc4 {[%clk 0:15:10]}
31. Nxc4 {[%clk 0:16:53]}  dxc4 {[%clk 0:05:36]} 32. Ra3 {[%clk 0:17:13]}  c3 {[%clk 0:05:04]} 33. Kf1 {[%clk 0:13:05]}  Bxb4 {[%clk 0:04:31]}
34. Rxa6 {[%clk 0:13:30]}  Rb2 {[%clk 0:04:20]} 35. Ra7+ {[%clk 0:09:27]}  Kc6 {[%clk 0:04:45]} 36. Rxh7 {[%clk 0:05:48]}  Bc5 {[%clk 0:04:56]}
37. Bxc5 {[%clk 0:02:30]}  Kxc5 {[%clk 0:05:21]} 38. Ke1 {[%clk 0:02:57]}  Rxg2 {[%clk 0:04:49]} 39. Kd1 {[%clk 0:03:24]}  Kd4 {[%clk 0:03:30]}
40. h4 {[%clk 0:02:54]}  Kd3 {[%clk 0:01:18]} 41. Rd7+ {[%clk 0:03:08]}  Ke3 {[%clk 0:01:40]} 42. Rf7 {[%clk 0:26:59]}  Rg3 {[%clk 0:18:07]}
43. Rf6 {[%clk 0:25:49]}  Kd3 {[%clk 0:18:06]} 44. Rd6+ {[%clk 0:26:14]}  Kc4 {[%clk 0:18:21]} 45. Rf6 {[%clk 0:24:10]}  Rg1+ {[%clk 0:16:18]}
46. Kc2 {[%clk 0:24:29]}  Rg2+ {[%clk 0:16:41]} 47. Kc1 {[%clk 0:24:39]}  Kd4 {[%clk 0:16:52]} 48. Re6 {[%clk 0:20:55]}  c2 {[%clk 0:14:55]}
49. Re7 {[%clk 0:19:12]}  Kd3 {[%clk 0:14:15]} 50. Rd7+ {[%clk 0:19:37]}  Ke3 {[%clk 0:14:40]} 51. Rf7 {[%clk 0:19:59]}  Rh2 {[%clk 0:13:55]}
52. Rg7 {[%clk 0:19:54]}  Kxf3 {[%clk 0:13:23]} 53. Rxg6 {[%clk 0:20:17]}  Rxh4 {[%clk 0:13:50]} 54. Kxc2 {[%clk 0:20:43]} 1/2-1/2

[Event "2026 European Womens Championship"]
[Site "Batumi, GE"]
[Date "2026.06.01"]
[Round "7"]
[White "Kiolbasa, Oliwia"]
[Black "Kulon, Klaudia"]
[Result "1/2-1/2"]
[Board "53"]
[TimeControl "5400+30"]
[WhiteFideId "1154613"]
[BlackFideId "1131044"]
[WhiteElo "2397"]
[BlackElo "2377"]
[WhiteTitle "IM"]
[BlackTitle "IM"]
[WhiteClock "0:02:06"]
[BlackClock "0:35:58"]
[Variant "Standard"]

1. e4 {[%clk 1:26:34]}  e5 {[%clk 1:30:55]} 2. Nf3 {[%clk 1:27:00]}  Nf6 {[%clk 1:31:20]} 3. d4 {[%clk 1:26:55]}  Nxe4 {[%clk 1:31:33]}
4. Bd3 {[%clk 1:27:13]}  d5 {[%clk 1:31:55]} 5. Nxe5 {[%clk 1:27:08]}  Nd7 {[%clk 1:32:00]} 6. Nc3 {[%clk 1:25:49]}  Bb4 {[%clk 1:32:06]}
7. O-O {[%clk 1:19:46]}  Nxe5 {[%clk 1:32:02]} 8. dxe5 {[%clk 1:17:04]}  Nxc3 {[%clk 1:32:24]} 9. bxc3 {[%clk 1:17:29]}  Bxc3 {[%clk 1:32:48]}
10. Rb1 {[%clk 1:17:42]}  O-O {[%clk 1:32:55]} 11. Bxh7+ {[%clk 1:17:35]}  Kxh7 {[%clk 1:33:21]} 12. Qd3+ {[%clk 1:17:58]}  Kg8 {[%clk 1:33:48]}
13. Qxc3 {[%clk 1:18:21]}  a5 {[%clk 1:34:03]} 14. Qg3 {[%clk 1:13:44]}  Ra6 {[%clk 1:33:37]} 15. Bg5 {[%clk 0:58:36]}  Qd7 {[%clk 1:32:47]}
16. f4 {[%clk 0:58:43]}  Qf5 {[%clk 1:32:46]} 17. c3 {[%clk 0:58:03]}  Rg6 {[%clk 1:26:16]} 18. h4 {[%clk 0:43:59]}  Kh7 {[%clk 1:22:54]}
19. Rbd1 {[%clk 0:29:21]}  Rc6 {[%clk 1:10:29]} 20. Rxd5 {[%clk 0:25:17]}  Be6 {[%clk 1:04:07]} 21. Rxa5 {[%clk 0:24:09]}  b6 {[%clk 1:03:09]}
22. Qf3 {[%clk 0:16:00]}  bxa5 {[%clk 0:53:36]} 23. Qxc6 {[%clk 0:16:25]}  Rb8 {[%clk 0:50:29]} 24. Rf2 {[%clk 0:09:23]}  Rb1+ {[%clk 0:49:32]}
25. Kh2 {[%clk 0:09:49]}  Rd1 {[%clk 0:48:50]} 26. Qf3 {[%clk 0:08:58]}  Qb1 {[%clk 0:37:26]} 27. f5 {[%clk 0:09:22]}  Bd5 {[%clk 0:37:32]}
28. Qh5+ {[%clk 0:00:45]}  Kg8 {[%clk 0:38:00]} 29. e6 {[%clk 0:00:58]}  Rh1+ {[%clk 0:34:55]} 30. Kg3 {[%clk 0:01:24]}  Qd3+ {[%clk 0:34:21]}
31. Rf3 {[%clk 0:01:33]}  Bxf3 {[%clk 0:34:19]} 32. Qxf7+ {[%clk 0:01:37]}  Kh7 {[%clk 0:34:40]} 33. Qg6+ {[%clk 0:01:33]}  Kg8 {[%clk 0:35:06]}
34. Qf7+ {[%clk 0:01:40]}  Kh7 {[%clk 0:35:32]} 35. Qg6+ {[%clk 0:02:06]}  Kg8 {[%clk 0:35:58]} 1/2-1/2

[Event "2026 European Womens Championship"]
[Site "Batumi, GE"]
[Date "2026.06.01"]
[Round "7"]
[White "Badelka, Olga"]
[Black "Mkrtchyan, Mariam"]
[Result "1-0"]
[Board "54"]
[TimeControl "5400+30"]
[WhiteFideId "13509926"]
[BlackFideId "13310828"]
[WhiteElo "2392"]
[BlackElo "2365"]
[WhiteTitle "IM"]
[BlackTitle "WGM"]
[WhiteClock "0:28:25"]
[BlackClock "0:00:34"]
[Variant "Standard"]

1. Nf3 {[%clk 1:30:55]}  d5 {[%clk 1:30:39]} 2. b3 {[%clk 1:31:14]}  Bf5 {[%clk 1:29:55]} 3. Bb2 {[%clk 1:31:28]}  e6 {[%clk 1:30:16]}
4. g3 {[%clk 1:31:30]}  h6 {[%clk 1:29:58]} 5. Bg2 {[%clk 1:31:32]}  Nf6 {[%clk 1:30:02]} 6. O-O {[%clk 1:31:26]}  Be7 {[%clk 1:30:15]}
7. d3 {[%clk 1:31:25]}  O-O {[%clk 1:27:52]} 8. Nc3 {[%clk 1:31:32]}  c6 {[%clk 1:26:15]} 9. Nd2 {[%clk 1:31:17]}  a5 {[%clk 1:22:35]}
10. e4 {[%clk 1:31:21]}  Bh7 {[%clk 1:22:25]} 11. Kh1 {[%clk 1:27:51]}  b5 {[%clk 1:18:49]} 12. a4 {[%clk 1:26:13]}  b4 {[%clk 1:13:01]}
13. Ne2 {[%clk 1:26:19]}  Na6 {[%clk 1:11:53]} 14. Qe1 {[%clk 1:22:06]}  c5 {[%clk 1:05:41]} 15. Nf4 {[%clk 1:15:38]}  Nc7 {[%clk 1:00:19]}
16. Qe2 {[%clk 1:15:07]}  Re8 {[%clk 0:55:16]} 17. Rae1 {[%clk 1:13:47]}  Bf8 {[%clk 0:52:11]} 18. Be5 {[%clk 1:00:28]}  Rc8 {[%clk 0:43:01]}
19. exd5 {[%clk 0:55:17]}  exd5 {[%clk 0:40:19]} 20. Qf3 {[%clk 0:54:41]}  Bd6 {[%clk 0:34:41]} 21. Bb2 {[%clk 0:42:52]}  Bxf4 {[%clk 0:23:10]}
22. Qxf4 {[%clk 0:43:16]}  Ne6 {[%clk 0:23:31]} 23. Bxf6 {[%clk 0:37:44]}  Qxf6 {[%clk 0:23:56]} 24. Qxf6 {[%clk 0:31:03]}  gxf6 {[%clk 0:24:25]}
25. Bxd5 {[%clk 0:31:06]}  Nd4 {[%clk 0:24:52]} 26. Nc4 {[%clk 0:16:08]}  Rxe1 {[%clk 0:23:45]} 27. Rxe1 {[%clk 0:16:34]}  Rd8 {[%clk 0:24:12]}
28. Be4 {[%clk 0:13:36]}  Nxc2 {[%clk 0:20:38]} 29. Rc1 {[%clk 0:14:00]}  f5 {[%clk 0:11:20]} 30. Bb7 {[%clk 0:14:06]}  Nd4 {[%clk 0:11:36]}
31. Nxa5 {[%clk 0:14:20]}  f4 {[%clk 0:10:31]} 32. gxf4 {[%clk 0:06:21]}  Bxd3 {[%clk 0:10:04]} 33. Rxc5 {[%clk 0:06:25]}  Ne6 {[%clk 0:08:19]}
34. Rc1 {[%clk 0:06:04]}  Nxf4 {[%clk 0:08:30]} 35. Bf3 {[%clk 0:03:37]}  Ba6 {[%clk 0:06:04]} 36. Rd1 {[%clk 0:03:50]}  Nd3 {[%clk 0:03:30]}
37. Rd2 {[%clk 0:02:58]}  Re8 {[%clk 0:03:09]} 38. h3 {[%clk 0:02:10]}  Re1+ {[%clk 0:00:50]} 39. Kh2 {[%clk 0:02:30]}  Rf1 {[%clk 0:01:10]}
40. Nc6 {[%clk 0:01:36]}  Nxf2 {[%clk 0:00:34]} 41. Bg2 {[%clk 0:28:25]} 1-0